bitfinex/quotes_BTCUSD_20230403
["timestamp","ask_amount","ask_price","bid_price","bid_amount"]
[1680547325018,0.01849115,28125.0,28124.0,0.01618]
[1680547325575,0.07157667,28125.0,28124.0,0.01618]
[1680547326075,0.09857667,28125.0,28124.0,0.01618]
[1680547326536,0.25781966,28125.0,28124.0,0.01618]
[1680547327270,0.27362366,28125.0,28124.0,0.01618]
[1680547327277,0.57362366,28125.0,28124.0,0.01618]
[1680547327829,0.69819246,28125.0,28124.0,0.01618]
[1680547328029,1.10049246,28125.0,28124.0,0.01618]
[1680547328275,0.57362366,28125.0,28124.0,0.01618]
[1680547328485,0.67220941,28125.0,28124.0,0.01618]
[1680547328726,0.54662366,28125.0,28124.0,0.01618]
[1680547328950,0.57362366,28125.0,28124.0,0.01618]
[1680547329169,1.0096834,28125.0,28124.0,0.01618]
[1680547329442,1.26091366,28125.0,28124.0,0.01618]
[1680547329636,1.45178246,28125.0,28124.0,0.01618]
[1680547329909,1.5823485,28125.0,28124.0,0.01618]
[1680547330359,1.8223485,28125.0,28124.0,0.01618]
[1680547330732,1.9646613,28125.0,28124.0,0.01618]
[1680547330994,3.22663787,28125.0,28124.0,0.01618]
[1680547331530,3.19963787,28125.0,28124.0,0.01618]
[1680547331767,3.22663787,28125.0,28124.0,0.01618]
[1680547332222,3.4447965,28125.0,28124.0,0.01618]
[1680547332693,2.16495113,28125.0,28124.0,0.01618]
[1680547333162,2.36495113,28125.0,28124.0,0.01618]
[1680547333694,3.66265408,28125.0,28124.0,0.01618]
[1680547333926,3.70891008,28125.0,28124.0,0.01618]
[1680547334158,3.69104128,28125.0,28124.0,0.01618]
[1680547334401,0.5883,28123.0,28121.0,0.021]
[1680547334630,1.44216656,28122.0,28121.0,0.021]
[1680547334861,1.34333656,28122.0,28121.0,0.021]
[1680547335795,1.34333656,28122.0,28114.0,0.00012]
[1680547335796,0.19988451,28116.0,28114.0,0.00012]
[1680547336044,0.6753,28114.0,28113.0,0.028441]
[1680547336270,0.53363333,28114.0,28113.0,0.028441]
[1680547336509,0.07057359,28114.0,28113.0,0.028441]
[1680547336738,0.44587359,28114.0,28113.0,0.028441]
[1680547336967,0.74587359,28114.0,28113.0,0.028441]
[1680547337217,1.04008489,28114.0,28113.0,0.028441]
[1680547337477,1.06708489,28114.0,28113.0,0.028441]
[1680547337721,0.91708489,28114.0,28113.0,0.028441]
[1680547338648,0.044184,28114.0,28113.0,0.028441]
[1680547338881,0.027,28114.0,28113.0,0.028441]
[1680547339124,0.05944059,28114.0,28113.0,0.028621]
[1680547339826,0.03244059,28114.0,28113.0,0.028621]
[1680547340064,0.027,28114.0,28113.0,0.028621]
[1680547340293,0.00995792,28115.0,28113.0,0.071321]
[1680547340533,0.00995792,28115.0,28114.0,0.041887]
[1680547340764,0.00995792,28115.0,28114.0,0.042067]
[1680547341521,0.04227198,28115.0,28114.0,0.00018]
[1680547341763,0.04774398,28115.0,28114.0,0.00018]
[1680547341998,1.23818549,28115.0,28114.0,0.00018]
[1680547342239,1.55768549,28115.0,28113.0,0.028441]
[1680547342475,0.73172733,28114.0,28113.0,0.028441]
[1680547342704,0.95097951,28114.0,28113.0,0.028441]
[1680547342934,1.35097951,28114.0,28113.0,0.028441]
[1680547343402,1.56397951,28114.0,28113.0,0.028441]
[1680547343634,1.59097951,28114.0,28113.0,0.028441]
[1680547344591,1.56397951,28114.0,28113.0,0.028441]
[1680547345108,1.59097951,28114.0,28113.0,0.028441]
[1680547346473,1.56397951,28114.0,28113.0,0.028441]
[1680547347415,1.59097951,28114.0,28113.0,0.028441]
[1680547347641,1.56397951,28114.0,28113.0,0.028441]
[1680547347867,1.59097951,28114.0,28113.0,0.028441]
[1680547348560,1.56397951,28114.0,28113.0,0.028441]
[1680547348787,1.37797951,28114.0,28113.0,0.028441]
[1680547349099,0.74417633,28114.0,28113.0,0.028441]
[1680547349332,0.77117633,28114.0,28109.0,0.021]
[1680547349577,0.00994732,28110.0,28109.0,0.021]
[1680547349810,0.06810907,28110.0,28109.0,0.021]
[1680547350049,0.02666232,28110.0,28109.0,0.021]
[1680547350284,0.00994732,28110.0,28109.0,0.021]
[1680547350580,0.00994732,28110.0,28109.0,0.06465]
[1680547351143,0.00994732,28110.0,28109.0,0.46465]
[1680547351418,0.03694732,28110.0,28109.0,0.46465]
[1680547351687,0.00994732,28110.0,28109.0,0.46465]
[1680547351962,0.00994732,28110.0,28109.0,0.46765]
[1680547352228,0.00994732,28110.0,28109.0,0.485437]
[1680547352815,0.00994732,28110.0,28109.0,1.23080756]
[1680547353636,0.00994732,28110.0,28109.0,1.22780756]
[1680547354637,0.20006451,28117.0,28110.0,0.40625028]
[1680547354914,0.20006451,28117.0,28113.0,0.1349]
[1680547354915,0.2325051,28117.0,28113.0,0.1349]
[1680547355244,0.2325051,28117.0,28116.0,0.1341]
[1680547355745,0.2410051,28117.0,28116.0,0.1341]
[1680547356009,0.2450051,28117.0,28116.0,0.1341]
[1680547356269,0.26900287,28117.0,28116.0,0.1351]
[1680547357105,0.06911836,28117.0,28116.0,0.1351]
[1680547359095,0.06911836,28117.0,28116.0,0.001]
[1680547361397,0.28393087,28117.0,28116.0,0.001]
[1680547361952,0.29637787,28117.0,28116.0,0.001]
[1680547362524,0.35850516,28117.0,28116.0,0.001]
[1680547363375,0.15862065,28117.0,28116.0,0.001]
[1680547363646,0.35850516,28117.0,28116.0,0.001]
[1680547363908,0.28393087,28117.0,28116.0,0.001]
[1680547364170,0.29637787,28117.0,28116.0,0.001]
[1680547365959,0.06911836,28117.0,28116.0,0.001]
[1680547367263,0.02817777,28117.0,28116.0,0.085]
[1680547367532,0.02799777,28117.0,28116.0,0.127891]
[1680547368126,0.00099777,28117.0,28116.0,0.126891]
[1680547368416,0.00099777,28117.0,28116.0,0.129891]
[1680547369300,0.00099777,28117.0,28116.0,0.087]
[1680547369484,0.00099777,28117.0,28116.0,0.084]
[1680547369488,0.00499777,28117.0,28116.0,0.084]
[1680547372002,0.08465855,28132.0,28119.0,0.5]
[1680547373512,0.27737991,28137.0,28129.0,0.0841]
[1680547373513,0.021,28137.0,28129.0,0.0841]
[1680547373942,0.00018,28130.0,28129.0,0.0841]
[1680547374086,0.08775974,28130.0,28129.0,0.0841]
[1680547374089,1.27951446,28136.0,28131.0,0.017773]
[1680547374283,1.27951446,28136.0,28133.0,0.0837]
[1680547374284,1.27969446,28136.0,28133.0,0.0837]
[1680547374490,0.19988451,28135.0,28134.0,0.14189681]
[1680547374693,0.20006451,28135.0,28133.0,0.0837]
[1680547374906,0.00018,28135.0,28133.0,0.0837]
[1680547375113,0.19988451,28135.0,28133.0,0.0837]
[1680547375311,0.00099829,28134.0,28133.0,0.0837]
[1680547375482,0.00117829,28134.0,28133.0,0.0837]
[1680547375975,0.00117829,28134.0,28133.0,0.221917]
[1680547376223,0.00099829,28134.0,28133.0,0.274177]
[1680547376425,0.00499829,28134.0,28133.0,0.274177]
[1680547376645,0.00099829,28134.0,28133.0,1.40418756]
[1680547377004,0.00299829,28134.0,28133.0,1.38164256]
[1680547377225,0.00299829,28134.0,28133.0,1.34774256]
[1680547377875,0.00099829,28134.0,28133.0,1.33474256]
[1680547378099,0.00299829,28134.0,28133.0,1.34774256]
[1680547378519,0.00499829,28134.0,28133.0,1.36074256]
[1680547378740,0.00099829,28134.0,28133.0,0.604732]
[1680547379197,0.00099829,28134.0,28133.0,0.18696]
[1680547379416,0.08875803,28134.0,28133.0,0.01536]
[1680547379635,0.08875803,28134.0,28128.0,0.4]
[1680547379636,0.00987409,28134.0,28128.0,0.151655]
[1680547379853,0.08775974,28133.0,28129.0,0.01536]
[1680547380076,0.08775974,28133.0,28130.0,0.017774]
[1680547380319,0.08775974,28133.0,28129.0,0.01536]
[1680547380320,0.00018,28133.0,28129.0,0.01536]
[1680547380549,0.20206451,28134.0,28129.0,0.01536]
[1680547380802,0.00099671,28130.0,28129.0,0.01536]
[1680547381241,0.00099671,28130.0,28129.0,0.033135]
[1680547381461,0.00099671,28130.0,28129.0,0.02836]
[1680547381680,0.00099671,28130.0,28129.0,0.01536]
[1680547381925,0.00299671,28130.0,28129.0,0.02836]
[1680547382335,0.00099671,28130.0,28129.0,0.01536]
[1680547382559,0.00299671,28130.0,28129.0,0.02836]
[1680547382986,0.00299671,28130.0,28129.0,0.046135]
[1680547383236,0.00299671,28130.0,28129.0,0.02836]
[1680547383453,0.00099671,28130.0,28129.0,0.033135]
[1680547383665,0.00099671,28130.0,28129.0,0.046135]
[1680547383888,0.00299671,28130.0,28129.0,0.033135]
[1680547384112,0.00099671,28130.0,28129.0,0.033135]
[1680547384335,0.00299671,28130.0,28129.0,0.02836]
[1680547384563,0.00099671,28130.0,28129.0,0.033135]
[1680547384789,0.00299671,28130.0,28129.0,0.013]
[1680547385008,0.00299671,28130.0,28129.0,0.030775]
[1680547385220,0.00299671,28130.0,28129.0,0.046135]
[1680547385428,0.00099671,28130.0,28129.0,0.033135]
[1680547385640,0.00099671,28130.0,28129.0,0.017775]
[1680547386494,0.00199671,28130.0,28129.0,0.027775]
[1680547386729,0.08975645,28130.0,28129.0,0.01]
[1680547386974,0.22329887,28130.0,28129.0,0.01]
[1680547387192,0.23179887,28130.0,28129.0,0.01]
[1680547387409,0.63179887,28130.0,28129.0,0.01]
[1680547387847,0.63497887,28130.0,28121.0,0.3898]
[1680547388083,0.00099383,28122.0,28121.0,0.3898]
[1680547388361,0.08875357,28122.0,28121.0,0.432431]
[1680547388581,0.00099383,28122.0,28121.0,0.042631]
[1680547388803,0.00099383,28122.0,28121.0,0.042451]
[1680547389019,0.00099383,28122.0,28120.0,0.057618]
[1680547389240,0.00099383,28122.0,28121.0,0.043081]
[1680547389460,0.00099383,28122.0,28120.0,0.042755]
[1680547390105,0.00199383,28122.0,28120.0,0.052755]
[1680547390338,0.41443883,28122.0,28120.0,0.01]
[1680547390571,0.08865633,28121.0,28120.0,0.01]
[1680547390861,0.023676,28121.0,28120.0,0.01]
[1680547391248,0.023676,28121.0,28115.0,0.00018]
[1680547391471,0.00099931,28116.0,28114.0,0.017964]
[1680547391693,0.08875905,28116.0,28115.0,0.041849]
[1680547391918,0.00099931,28116.0,28115.0,0.041849]
[1680547392807,0.00199931,28116.0,28115.0,0.069633]
[1680547393270,0.00199931,28116.0,28115.0,0.051849]
[1680547393493,0.00099931,28116.0,28115.0,0.041849]
[1680547393709,0.00199931,28116.0,28115.0,0.01]
[1680547393920,0.00199931,28116.0,28115.0,0.0542]
[1680547394126,0.00199931,28116.0,28115.0,0.01]
[1680547394989,0.00199931,28116.0,28115.0,0.051239]
[1680547395940,0.00199931,28116.0,28115.0,0.01]
[1680547396207,0.00199931,28116.0,28115.0,0.051581]
[1680547396466,0.00099931,28116.0,28112.0,0.028621]
[1680547396722,0.004,28116.0,28113.0,0.041555]
[1680547397469,0.00099204,28114.0,28113.0,0.059339]
[1680547397681,0.00099204,28114.0,28113.0,0.041555]
[1680547398665,0.00099204,28114.0,28113.0,0.06934]
[1680547398941,0.00099204,28114.0,28113.0,0.44314]
[1680547399201,0.00099204,28114.0,28113.0,0.43314]
[1680547399487,0.00299204,28114.0,28113.0,0.84432]
[1680547399754,0.00199204,28114.0,28113.0,0.84332]
[1680547400761,0.00099204,28114.0,28113.0,0.83332]
[1680547401091,0.00299204,28114.0,28113.0,0.84432]
[1680547401282,0.00099204,28114.0,28113.0,1.56333056]
[1680547401524,0.00199204,28114.0,28113.0,1.57333056]
[1680547401771,0.00099204,28114.0,28113.0,1.56333056]
[1680547402035,0.00299204,28114.0,28113.0,1.57433056]
[1680547402268,0.00099204,28114.0,28113.0,1.56333056]
[1680547402558,0.00299204,28114.0,28113.0,1.57433056]
[1680547402814,0.00018,28123.0,28114.0,0.00798767]
[1680547403096,0.28782425,28126.0,28117.0,0.3753]
[1680547403351,0.28782425,28126.0,28118.0,0.18302581]
[1680547403352,0.19988451,28121.0,28118.0,0.18302581]
[1680547403597,0.19988451,28121.0,28119.0,0.043455]
[1680547403823,0.19988451,28121.0,28116.0,0.040482]
[1680547404052,0.00018,28121.0,28119.0,0.135]
[1680547404275,0.6,28130.0,28119.0,0.135]
[1680547404276,0.00018,28123.0,28120.0,0.95698637]
[1680547404527,0.19988451,28127.0,28123.0,0.5103]
[1680547404756,0.20006451,28127.0,28124.0,0.20429981]
[1680547404989,0.20006451,28127.0,28125.0,0.043402]
[1680547405219,0.20006451,28127.0,28126.0,0.017777]
[1680547405429,0.20006451,28127.0,28126.0,0.043138]
[1680547406157,0.20105848,28127.0,28126.0,0.043138]
[1680547406620,0.20305848,28127.0,28126.0,0.043138]
[1680547406834,0.20105848,28127.0,28126.0,0.043138]
[1680547407060,0.20305848,28127.0,28126.0,0.054138]
[1680547407753,0.20305848,28127.0,28126.0,0.071915]
[1680547408636,0.20305848,28127.0,28126.0,0.054138]
[1680547409530,0.20305848,28127.0,28126.0,0.071915]
[1680547412653,0.20305848,28127.0,28126.0,0.054138]
[1680547412865,0.00117397,28127.0,28126.0,0.92592556]
[1680547413078,0.00299397,28127.0,28126.0,0.93692556]
[1680547413513,0.00117397,28127.0,28126.0,0.92592556]
[1680547413721,0.00299397,28127.0,28126.0,0.93692556]
[1680547413989,0.00099397,28127.0,28126.0,0.92592556]
[1680547414199,0.00099397,28127.0,28126.0,0.93692556]
[1680547414200,0.00299397,28127.0,28126.0,0.93692556]
[1680547416390,0.20287848,28127.0,28126.0,0.93692556]
[1680547416607,0.20305848,28127.0,28126.0,0.93692556]
[1680547417904,0.00317397,28127.0,28126.0,0.93692556]
[1680547418179,0.00299397,28127.0,28126.0,1.23692556]
[1680547418733,0.00299397,28127.0,28126.0,1.10192556]
[1680547419224,0.00299397,28127.0,28126.0,0.96546449]
[1680547420606,0.00299397,28127.0,28126.0,0.358715]
[1680547420827,0.00299397,28127.0,28126.0,0.058715]
[1680547421044,0.00299397,28127.0,28126.0,0.098215]
[1680547424740,0.00299397,28127.0,28126.0,0.82822556]
[1680547424958,0.00299397,28127.0,28126.0,1.63702556]
[1680547429198,0.00299397,28127.0,28126.0,1.72078395]
[1680547429683,0.00299397,28127.0,28126.0,1.50208556]
[1680547429919,0.00299397,28127.0,28126.0,1.50220556]
[1680547430369,0.00299397,28127.0,28126.0,0.772015]
[1680547433227,0.00299397,28127.0,28126.0,1.50202556]
[1680547436681,0.00299397,28127.0,28126.0,1.90202556]
[1680547437171,0.00299397,28127.0,28126.0,1.98578395]
[1680547438300,0.00299397,28127.0,28126.0,2.34602649]
[1680547438536,0.00299397,28127.0,28126.0,2.51359265]
[1680547438826,0.00299397,28127.0,28126.0,2.38795506]
[1680547439864,0.00299397,28127.0,28126.0,2.40582386]
[1680547440160,0.00099397,28127.0,28126.0,2.45034718]
[1680547440440,0.00099726,28127.0,28126.0,2.31078102]
[1680547440846,0.00099726,28127.0,28126.0,2.49261118]
[1680547440848,0.00018,28135.0,28126.0,2.52060162]
[1680547441054,0.00018,28135.0,28130.0,0.5103]
[1680547441299,0.00018,28135.0,28132.0,0.3753]
[1680547441525,0.00018,28135.0,28133.0,0.81132156]
[1680547441741,0.00018,28135.0,28134.0,0.028756]
[1680547441967,0.00018,28135.0,28134.0,0.061888]
[1680547442864,0.0011783,28135.0,28134.0,0.061888]
[1680547443460,0.0011783,28135.0,28134.0,0.081888]
[1680547443676,0.0011783,28135.0,28134.0,0.061888]
[1680547443872,0.0011783,28135.0,28134.0,0.089888]
[1680547444318,0.0011783,28135.0,28134.0,0.104688]
[1680547444780,0.0011783,28135.0,28134.0,0.524688]
[1680547445000,0.0011783,28135.0,28134.0,0.504688]
[1680547445892,0.0011783,28135.0,28134.0,0.532688]
[1680547446185,0.0011783,28135.0,28134.0,0.504688]
[1680547446428,0.0009983,28135.0,28134.0,1.25469856]
[1680547446703,0.0011783,28135.0,28134.0,1.23469856]
[1680547447249,0.0011783,28135.0,28134.0,1.31889856]
[1680547447729,0.0011783,28135.0,28134.0,1.33889856]
[1680547447999,0.0011783,28135.0,28134.0,1.63889856]
[1680547448565,0.0011783,28135.0,28134.0,1.72282821]
[1680547449079,0.0011783,28135.0,28134.0,1.70282821]
[1680547449083,0.0011783,28135.0,28134.0,1.73082821]
[1680547449315,0.0009983,28135.0,28134.0,1.73082821]
[1680547449775,0.0009983,28135.0,28134.0,1.64689856]
[1680547450296,0.08875804,28135.0,28134.0,1.52276575]
[1680547450538,0.2,28133.0,28132.0,0.00018]
[1680547450824,0.19988451,28127.0,28126.0,0.08392965]
[1680547451110,0.19988451,28124.0,28121.0,0.08392965]
[1680547451841,0.19988451,28120.0,28119.0,0.20982413]
[1680547451846,0.19988451,28120.0,28119.0,0.08392965]
[1680547452480,0.40642851,28120.0,28119.0,0.08404965]
[1680547452483,0.5350427,28120.0,28119.0,0.00018]
[1680547452486,0.44728296,28120.0,28119.0,6e-05]
[1680547452723,0.44728296,28120.0,28115.0,0.20982413]
[1680547452724,0.2,28116.0,28115.0,0.00018]
[1680547453027,0.62248725,28116.0,28114.0,0.08991936]
[1680547453217,0.120453,28115.0,28114.0,0.00598971]
[1680547453452,0.132901,28115.0,28114.0,0.00598971]
[1680547453694,0.53390007,28115.0,28114.0,0.00598971]
[1680547453932,0.61810007,28115.0,28114.0,0.00598971]
[1680547454153,1.37744648,28115.0,28114.0,0.00598971]
[1680547454796,1.37744648,28115.0,28114.0,0.00698971]
[1680547455092,1.87789041,28115.0,28114.0,0.00698971]
[1680547455370,1.87789041,28115.0,28111.0,0.028442]
[1680547455371,0.39982451,28112.0,28111.0,0.028442]
[1680547455866,0.94040251,28112.0,28111.0,0.028442]
[1680547455868,1.24140251,28112.0,28111.0,0.028442]
[1680547456140,0.32353251,28112.0,28111.0,0.028442]
[1680547456414,0.20082162,28112.0,28111.0,0.028442]
[1680547457802,0.20082162,28112.0,28111.0,0.029442]
[1680547457803,0.22782162,28112.0,28111.0,0.029442]
[1680547458529,0.2178688,28122.0,28112.0,0.3753]
[1680547458535,0.0178688,28122.0,28112.0,0.7753]
[1680547458779,0.17064,28127.0,28112.0,0.7753]
[1680547458780,0.3858,28127.0,28118.0,0.2]
[1680547459018,0.08468,28127.0,28120.0,0.01778]
[1680547459260,0.00012,28127.0,28121.0,0.021044]
[1680547459500,0.08438,28128.0,28122.0,0.3753]
[1680547459764,0.0842,28128.0,28123.0,0.89219237]
[1680547460013,0.0842,28128.0,28124.0,0.021194]
[1680547460250,0.0842,28128.0,28124.0,0.16309081]
[1680547460490,0.0842,28128.0,28124.0,0.14189681]
[1680547460729,0.0842,28128.0,28123.0,0.73001056]
[1680547460951,0.0842,28128.0,28124.0,0.021217]
[1680547461178,0.0842,28128.0,28124.0,0.048897]
[1680547461414,0.0842,28128.0,28125.0,0.021586]
[1680547462133,0.0842,28128.0,28125.0,0.029266]
[1680547462379,0.1349,28129.0,28126.0,0.020907]
[1680547462620,0.2,28122.0,28115.0,0.16779774]
[1680547462854,0.5102,28126.0,28113.0,0.4249577]
[1680547462855,0.2,28119.0,28113.0,0.4249577]
[1680547463100,0.13039674,28118.0,28113.0,0.4251377]
[1680547463344,0.1349,28114.0,28113.0,0.4251377]
[1680547463809,0.22265974,28114.0,28113.0,0.4250777]
[1680547463813,0.22265974,28114.0,28113.0,0.4249577]
[1680547464050,0.28061774,28114.0,28113.0,0.4249577]
[1680547464287,1.15077612,28114.0,28113.0,0.4249577]
[1680547464526,1.06801638,28114.0,28113.0,0.4249577]
[1680547464767,1.06301638,28114.0,28113.0,0.4249577]
[1680547465010,1.06301638,28114.0,28113.0,0.4269577]
[1680547465011,1.01995461,28114.0,28113.0,0.4269577]
[1680547465247,0.1982778,28114.0,28113.0,0.4249577]
[1680547465472,0.185409,28114.0,28113.0,0.4269577]
[1680547466401,0.180409,28114.0,28113.0,0.4249577]
[1680547466639,0.185409,28114.0,28113.0,0.4269577]
[1680547466872,0.180409,28114.0,28113.0,0.4249577]
[1680547467108,0.185409,28114.0,28113.0,0.4269577]
[1680547472309,0.14008,28114.0,28113.0,0.4269577]
[1680547472944,0.13508,28114.0,28113.0,0.4249577]
[1680547473156,0.1399,28114.0,28113.0,0.4259577]
[1680547473583,0.1349,28114.0,28113.0,0.4249577]
[1680547473800,0.1399,28114.0,28113.0,0.4259577]
[1680547474036,0.1349,28114.0,28113.0,0.4249577]
[1680547474246,0.00018,28115.0,28113.0,0.4249577]
[1680547474462,0.00018,28118.0,28113.0,0.4249577]
[1680547474670,0.00018,28118.0,28113.0,0.56685451]
[1680547474920,0.005,28114.0,28113.0,0.56785451]
[1680547475147,0.00018,28118.0,28113.0,0.4388157]
[1680547475357,0.020198,28118.0,28113.0,0.56685451]
[1680547475622,0.00018,28118.0,28113.0,0.56685451]
[1680547475859,0.00018,28118.0,28114.0,0.7753]
[1680547476323,0.00018,28119.0,28114.0,0.7753]
[1680547476559,0.00018,28119.0,28114.0,0.93498081]
[1680547476796,0.00018,28119.0,28114.0,0.793084]
[1680547477031,0.005,28118.0,28114.0,0.93498081]
[1680547477261,0.005,28118.0,28115.0,0.014297]
[1680547477770,0.005,28118.0,28116.0,0.49660737]
[1680547478006,0.005,28118.0,28117.0,0.443379]
[1680547478241,0.005,28119.0,28117.0,0.747219]
[1680547478475,0.00018,28123.0,28118.0,0.790223]
[1680547478707,0.00018,28123.0,28119.0,0.17371081]
[1680547478933,0.212443,28128.0,28119.0,0.17371081]
[1680547478934,0.00018,28124.0,28119.0,0.53881781]
[1680547479127,0.00018,28126.0,28119.0,0.53497781]
[1680547479382,0.00018,28126.0,28120.0,0.4]
[1680547479609,0.00018,28126.0,28121.0,0.14189681]
[1680547479838,0.005,28123.0,28121.0,0.14189681]
[1680547480088,0.005,28123.0,28122.0,0.73001056]
[1680547480386,0.005,28123.0,28122.0,0.79872456]
[1680547480935,0.00018,28128.0,28122.0,0.79872456]
[1680547481209,0.00018,28128.0,28123.0,0.53156081]
[1680547481481,0.00018,28128.0,28124.0,0.432923]
[1680547481933,0.00018,28130.0,28124.0,0.15979481]
[1680547481934,0.00018,28128.0,28124.0,0.017778]
[1680547482480,0.00018,28128.0,28124.0,0.024778]
[1680547483302,0.00018,28128.0,28125.0,0.3753]
[1680547484604,0.00018,28128.0,28126.0,0.014293]
[1680547484870,0.00018,28128.0,28125.0,0.3753]
[1680547485401,0.02310001,28131.0,28125.0,0.3753]
[1680547485402,0.00018,28129.0,28126.0,0.014626]
[1680547485723,7.262e-05,28129.0,28125.0,0.3753]
[1680547485916,0.02310001,28131.0,28125.0,0.37548]
[1680547486182,0.02310001,28131.0,28125.0,0.51737681]
[1680547486478,0.12330075,28131.0,28125.0,0.00018]
[1680547486673,0.005,28129.0,28125.0,0.14189681]
[1680547486893,0.005,28129.0,28122.0,0.00402]
[1680547486894,0.03554101,28131.0,28124.0,0.00018]
[1680547487128,0.12330075,28131.0,28124.0,0.51719681]
[1680547487347,0.12330075,28131.0,28124.0,0.51737681]
[1680547487790,0.12343337,28131.0,28124.0,0.52094649]
[1680547488014,0.12343337,28131.0,28124.0,0.51710649]
[1680547488234,0.12343337,28131.0,28124.0,0.52410649]
[1680547489308,0.12343337,28131.0,28124.0,0.51710649]
[1680547490906,0.16927671,28131.0,28124.0,0.51710649]
[1680547491131,0.16927671,28131.0,28124.0,0.52410649]
[1680547491590,0.043677,28130.0,28124.0,0.52410649]
[1680547491821,0.043677,28130.0,28124.0,0.3823]
[1680547491822,0.08798268,28130.0,28124.0,0.3823]
[1680547492044,0.08798268,28130.0,28124.0,0.51719681]
[1680547492721,0.08798268,28130.0,28124.0,0.52419681]
[1680547492965,0.11383505,28130.0,28124.0,0.51719681]
[1680547493191,0.12627705,28130.0,28124.0,0.51719681]
[1680547493465,0.044447,28129.0,28124.0,0.51719681]
[1680547493689,0.04457962,28129.0,28124.0,0.3753]
[1680547494128,0.04457962,28129.0,28122.0,0.017779]
[1680547494353,0.08785006,28128.0,28124.0,0.3753]
[1680547494579,0.08798268,28129.0,28124.0,0.3753]
[1680547494818,0.00013262,28129.0,28126.0,0.3753]
[1680547495062,0.02310001,28131.0,28126.0,0.3753]
[1680547495063,0.01257462,28130.0,28126.0,0.3753]
[1680547495297,0.00013262,28130.0,28126.0,0.3753]
[1680547495523,0.02323263,28131.0,28126.0,0.3753]
[1680547495751,0.02323263,28131.0,28126.0,0.51719681]
[1680547495964,0.02323263,28131.0,28126.0,0.53019681]
[1680547496188,0.02323263,28131.0,28126.0,0.3753]
[1680547496412,0.005,28130.0,28126.0,0.3753]
[1680547496639,0.02323263,28131.0,28126.0,0.3753]
[1680547496881,0.02323263,28131.0,28126.0,0.3823]
[1680547497382,0.02310001,28131.0,28126.0,0.3823]
[1680547497617,0.02323263,28131.0,28126.0,0.3823]
[1680547497844,0.012442,28130.0,28126.0,0.3753]
[1680547498082,0.02323263,28131.0,28126.0,0.3753]
[1680547498329,0.02323263,28131.0,28126.0,0.3823]
[1680547498580,0.02310001,28131.0,28126.0,0.20760308]
[1680547499358,0.02310001,28131.0,28126.0,0.20060308]
[1680547499619,0.02310001,28131.0,28126.0,0.20760308]
[1680547500166,0.02310001,28131.0,28126.0,0.21144308]
[1680547500710,0.02310001,28131.0,28126.0,0.20760308]
[1680547500980,0.11451743,28131.0,28126.0,0.007]
[1680547501453,0.02310001,28131.0,28126.0,0.007]
[1680547501746,0.03554101,28131.0,28126.0,0.007]
[1680547502100,0.042784,28130.0,28123.0,0.396918]
[1680547502397,0.08785006,28129.0,28123.0,0.75162856]
[1680547502652,0.03554101,28131.0,28123.0,0.75162856]
[1680547502653,0.08785006,28128.0,28123.0,0.75162856]
[1680547502942,0.08785006,28128.0,28126.0,0.007]
[1680547503209,0.02323263,28131.0,28126.0,0.007]
[1680547503734,0.02310001,28131.0,28126.0,0.14889681]
[1680547504041,0.02310001,28131.0,28126.0,0.14189681]
[1680547504488,0.02310001,28131.0,28127.0,0.14189681]
[1680547504538,0.02310001,28131.0,28127.0,0.3753]
[1680547504542,0.02310001,28131.0,28127.0,0.87190737]
[1680547504825,0.02310001,28131.0,28128.0,0.033387]
[1680547505118,0.02310001,28131.0,28130.0,0.3753]
[1680547505580,0.02310001,28131.0,28130.0,0.94007337]
[1680547505594,0.02310001,28131.0,28130.0,0.79817656]
[1680547505867,0.02310001,28131.0,28130.0,1.15861656]
[1680547506311,0.01431945,28131.0,28130.0,2.15861656]
[1680547506554,0.01531945,28131.0,28130.0,2.15861656]
[1680547506788,0.02310001,28135.0,28132.0,0.3753]
[1680547507019,0.02310001,28135.0,28134.0,0.5103]
[1680547507244,0.02310001,28135.0,28134.0,1.44451556]
[1680547507475,0.02310001,28135.0,28134.0,1.44835556]
[1680547507697,0.02310001,28135.0,28134.0,1.61312756]
[1680547508480,0.02310001,28135.0,28134.0,1.64112756]
[1680547509866,0.01404958,28135.0,28134.0,1.61312756]
[1680547510090,0.01404958,28135.0,28134.0,1.64112756]
[1680547510315,0.01404958,28135.0,28134.0,1.91312756]
[1680547510586,0.01404958,28135.0,28134.0,1.94112756]
[1680547511036,0.01404958,28135.0,28134.0,1.91312756]
[1680547511271,0.01404958,28135.0,28134.0,1.94112756]
[1680547511491,0.00904958,28135.0,28134.0,1.91312756]
[1680547511710,0.00904958,28135.0,28134.0,1.94112756]
[1680547512629,0.00904958,28135.0,28134.0,1.91312756]
[1680547512858,0.00904958,28135.0,28134.0,1.94112756]
[1680547513100,0.00904958,28135.0,28134.0,1.91312756]
[1680547513333,0.02310001,28138.0,28137.0,0.5753]
[1680547513561,1e-08,28138.0,28137.0,1.99801756]
[1680547513798,0.02310001,28140.0,28137.0,1.99801756]
[1680547514030,0.02310001,28140.0,28139.0,0.5103]
[1680547514261,0.02310001,28140.0,28139.0,1.37431637]
[1680547514491,0.02310001,28140.0,28139.0,1.25505956]
[1680547514706,0.02310001,28140.0,28139.0,2.02613456]
[1680547515805,0.02310001,28140.0,28139.0,2.39993456]
[1680547516014,0.02310001,28140.0,28139.0,2.42793456]
[1680547516246,0.01571486,28140.0,28139.0,2.42793456]
[1680547516470,4.86e-06,28140.0,28139.0,2.42793456]
[1680547516942,4.86e-06,28140.0,28139.0,2.39993456]
[1680547517158,4.86e-06,28140.0,28139.0,2.42793456]
[1680547517373,4.86e-06,28140.0,28139.0,2.39993456]
[1680547518077,0.02310001,28144.0,28140.0,1.0753]
[1680547518315,0.01146901,28144.0,28143.0,1.06491056]
[1680547518545,0.01146901,28144.0,28143.0,1.50443756]
[1680547518797,0.01146901,28144.0,28143.0,1.64345756]
[1680547519009,0.00259902,28145.0,28144.0,0.7753]
[1680547519215,0.00259902,28145.0,28144.0,1.83657556]
[1680547519453,0.00259902,28145.0,28144.0,1.84041556]
[1680547519692,0.00259902,28145.0,28144.0,1.48671556]
[1680547519905,0.00259902,28145.0,28144.0,1.08671556]
[1680547520361,0.00259902,28145.0,28144.0,1.11471556]
[1680547520842,0.00259902,28145.0,28144.0,1.47361056]
[1680547521063,0.00259902,28145.0,28144.0,1.77415056]